bitfinex-derivatives/quotes_BTCF0:USTF0_20210707
["timestamp","ask_amount","ask_price","bid_price","bid_amount"]
[1625694535594,1.16824768,34197.0,34196.0,0.002]
[1625694536347,1.16824768,34197.0,34195.0,0.001]
[1625694536494,1.16808369,34196.0,34195.0,0.001]
[1625694537246,1.40865913,34196.0,34195.0,0.001]
[1625694537996,0.24057544,34196.0,34195.0,0.001]
[1625694541825,0.90833601,34196.0,34195.0,0.001]
[1625694545282,0.90833601,34196.0,34193.0,0.17225617]
[1625694545735,0.66744765,34195.0,34193.0,0.17225617]
[1625694545893,0.16696589,34194.0,34193.0,0.17225617]
[1625694547010,0.16696589,34194.0,34193.0,0.001]
[1625694547312,0.40754133,34194.0,34193.0,0.001]
[1625694547762,0.40754133,34194.0,34193.0,0.17219549]
[1625694551066,0.40754133,34194.0,34193.0,0.001]
[1625694551816,0.24057544,34194.0,34193.0,0.001]
[1625694552119,0.40741471,34194.0,34193.0,0.001]
[1625694553100,0.40741471,34194.0,34193.0,0.00612943]
[1625694553249,0.40741471,34194.0,34193.0,0.23827943]
[1625694553844,0.40741471,34194.0,34193.0,0.23315]
[1625694554218,0.40741471,34194.0,34193.0,0.23827942]
[1625694554368,0.24057544,34194.0,34193.0,0.23827942]
[1625694554522,0.24057544,34194.0,34193.0,0.40935372]
[1625694555121,0.24057544,34194.0,34193.0,0.23827942]
[1625694555270,0.24057544,34194.0,34193.0,0.92256422]
[1625694555572,0.24057544,34194.0,34193.0,2.3605343]
[1625694555872,0.24057544,34196.0,34193.0,3.7288707]
[1625694556022,0.24057544,34196.0,34193.0,4.7288707]
[1625694556171,0.24057544,34196.0,34195.0,3.25001597]
[1625694556330,0.24057544,34196.0,34195.0,4.78931741]
[1625694556623,0.001,34200.0,34195.0,4.78931741]
[1625694556772,0.001,34200.0,34195.0,4.79444495]
[1625694556922,0.001,34200.0,34199.0,3.2493812]
[1625694557379,0.002,34203.0,34199.0,3.25450841]
[1625694557522,0.002,34203.0,34202.0,0.72172632]
[1625694557671,0.002,34203.0,34202.0,4.2500792]
[1625694557839,0.002,34203.0,34202.0,4.25520616]
[1625694558947,0.002,34203.0,34202.0,5.79402936]
[1625694561576,0.002,34203.0,34202.0,6.81968739]
[1625694562403,0.003,34208.0,34202.0,6.81968739]
[1625694562708,0.003,34208.0,34207.0,4.27277879]
[1625694563151,0.003,34208.0,34207.0,4.2779062]
[1625694563750,0.003,34208.0,34207.0,4.75905708]
[1625694566305,0.24157544,34212.0,34207.0,4.75905708]
[1625694566455,0.24157544,34212.0,34207.0,9.94942967]
[1625694566606,0.24157544,34212.0,34211.0,0.68334239]
[1625694567432,0.24157544,34212.0,34211.0,0.25625781]
[1625694567881,0.40944208,34212.0,34208.0,0.25628184]
[1625694568030,0.71923208,34212.0,34208.0,0.25628184]
[1625694568182,0.25194956,34211.0,34208.0,0.25628184]
[1625694568334,0.25194956,34211.0,34207.0,5.1955]
[1625694568335,0.67047562,34209.0,34207.0,5.1955]
[1625694568935,0.67047562,34209.0,34205.0,0.001]
[1625694568936,0.67024703,34208.0,34205.0,0.001]
[1625694569084,0.25158551,34206.0,34205.0,0.001]
[1625694569385,1.6742243,34206.0,34205.0,0.001]
[1625694569536,5.9157243,34206.0,34205.0,0.001]
[1625694569684,6.63745062,34206.0,34205.0,0.001]
[1625694570661,2.39595062,34206.0,34205.0,0.001]
[1625694572017,3.56799889,34206.0,34205.0,0.001]
[1625694572481,2.39595062,34206.0,34205.0,0.001]
[1625694572618,1.39144952,34206.0,34205.0,0.001]
[1625694573521,2.39644339,34206.0,34205.0,0.001]
[1625694575258,3.56882736,34206.0,34203.0,0.001]
[1625694575398,1.67464971,34204.0,34203.0,0.001]
[1625694575546,1.90954971,34204.0,34203.0,0.001]
[1625694575847,2.15012515,34204.0,34203.0,0.001]
[1625694576454,1.14536881,34204.0,34203.0,0.001]
[1625694576823,0.47547544,34204.0,34203.0,0.001]
[1625694576973,0.24057544,34204.0,34203.0,0.001]
[1625694577124,0.49232221,34204.0,34203.0,0.001]
[1625694577573,0.24057544,34204.0,34203.0,0.001]
[1625694577726,0.24057544,34204.0,34203.0,0.08648049]
[1625694578026,0.24057544,34204.0,34203.0,0.2574398]
[1625694578475,0.24057544,34204.0,34203.0,0.001]
[1625694579223,0.24057544,34204.0,34203.0,0.68481968]
[1625694579674,0.24057544,34204.0,34203.0,0.001]
[1625694580126,0.24057544,34204.0,34203.0,0.17197935]
[1625694581330,0.24057544,34204.0,34203.0,0.001]
[1625694582081,0.24057544,34204.0,34203.0,0.69010201]
[1625694585087,0.24057544,34204.0,34203.0,1.71607849]
[1625694587264,0.24057544,34204.0,34203.0,1.71507849]
[1625694591098,0.24057544,34204.0,34203.0,0.68910201]
[1625694592144,0.24057544,34204.0,34203.0,0.00513018]
[1625694592445,0.24057544,34204.0,34203.0,0.68905176]
[1625694592596,0.24057544,34204.0,34203.0,0.00513018]
[1625694592897,0.56911544,34204.0,34203.0,0.00513018]
[1625694593048,0.56911544,34204.0,34203.0,0.09063337]
[1625694593049,0.65319552,34204.0,34203.0,0.09063337]
[1625694593209,0.82118786,34204.0,34203.0,0.09063337]
[1625694593349,0.56911544,34204.0,34203.0,0.00513018]
[1625694594398,1.24012859,34204.0,34203.0,0.00513018]
[1625694594849,2.24682115,34204.0,34203.0,0.00513018]
[1625694594997,2.24682115,34204.0,34202.0,0.00513065]
[1625694595447,0.67112668,34203.0,34202.0,0.00513065]
[1625694595974,1.24044934,34204.0,34202.0,0.00513065]
[1625694596125,0.16798307,34203.0,34202.0,0.00513065]
[1625694596425,0.25206223,34203.0,34202.0,0.09065481]
[1625694596575,0.08407916,34203.0,34202.0,0.26170235]
[1625694596876,0.25207255,34203.0,34202.0,0.26170235]
[1625694597027,0.16799339,34203.0,34202.0,0.26170235]
[1625694597552,1.2406018,34204.0,34202.0,0.09065481]
[1625694598004,1.2406018,34204.0,34203.0,0.00513045]
[1625694601306,2.24781047,34204.0,34203.0,0.00513045]
[1625694601606,2.24781047,34204.0,34202.0,0.00513173]
[1625694601910,1.67854577,34203.0,34202.0,0.00513173]
[1625694602964,3.35293732,34203.0,34202.0,0.00513173]
[1625694603113,4.6945215,34203.0,34202.0,0.00513173]
[1625694604388,4.70750202,34203.0,34202.0,0.00513173]
[1625694604838,6.21591916,34203.0,34202.0,0.00513173]
[1625694604988,6.21591916,34203.0,34201.0,0.41293173]
[1625694605138,6.21591916,34203.0,34201.0,0.001]
[1625694605297,5.69549615,34202.0,34201.0,0.001]
[1625694605439,6.19549615,34202.0,34201.0,0.001]
[1625694605589,6.20849114,34202.0,34201.0,0.001]
[1625694606050,6.44906658,34202.0,34201.0,0.001]
[1625694606347,6.44906658,34202.0,34201.0,0.00612657]
[1625694606643,6.43607159,34202.0,34201.0,0.001]
[1625694608442,6.44906669,34202.0,34201.0,0.001]
[1625694609042,6.43607159,34202.0,34201.0,0.001]
[1625694609194,6.43607159,34202.0,34200.0,0.001]
[1625694609347,5.69608466,34201.0,34200.0,0.001]
[1625694609493,6.19608466,34201.0,34200.0,0.001]
[1625694610094,6.4366601,34201.0,34200.0,0.001]
[1625694614146,5.9366601,34201.0,34200.0,0.001]
[1625694614459,4.42892718,34201.0,34200.0,0.001]
[1625694617298,3.08870153,34201.0,34200.0,0.001]
[1625694617600,1.91598314,34201.0,34200.0,0.001]
[1625694618050,1.91598314,34201.0,34200.0,0.24157544]
[1625694618349,0.91077202,34201.0,34200.0,0.24057544]
[1625694618650,0.91077202,34201.0,34200.0,0.24570104]
[1625694618799,0.91077202,34201.0,34200.0,0.84449797]
[1625694618800,0.74769955,34201.0,34200.0,0.84449797]
[1625694619099,0.49432089,34201.0,34200.0,0.58787071]
[1625694619548,0.24057544,34201.0,34200.0,0.9300136]
[1625694620085,0.24057544,34201.0,34200.0,1.95668292]
[1625694621576,0.24057544,34201.0,34200.0,2.47004056]
[1625694622031,0.24057544,34201.0,34200.0,3.66818975]
[1625694622556,0.59367586,34203.0,34200.0,3.66818975]
[1625694622711,0.08487922,34203.0,34200.0,3.66818975]
[1625694622859,0.25475597,34204.0,34202.0,1.54060014]
[1625694623010,0.25475597,34204.0,34202.0,2.22531131]
[1625694623155,0.25475597,34204.0,34203.0,1.54059847]
[1625694623306,0.25475597,34204.0,34203.0,6.11943128]
[1625694623908,0.5943259,34204.0,34203.0,6.11943128]
[1625694624132,0.25475597,34204.0,34203.0,6.36000672]
[1625694624958,0.59431069,34204.0,34203.0,6.36000672]
[1625694625407,0.25475597,34204.0,34203.0,6.36000672]
[1625694625716,0.08498623,34204.0,34203.0,6.36000672]
[1625694625860,0.25495033,34204.0,34203.0,7.55921922]
[1625694626311,0.25606055,34205.0,34203.0,7.55921922]
[1625694626613,0.08607679,34205.0,34204.0,3.42621529]
[1625694626762,0.08607679,34205.0,34204.0,3.43133698]
[1625694626926,0.001,34205.0,34204.0,4.80168234]
[1625694627360,0.001,34208.0,34204.0,6.34326831]
[1625694627520,0.001,34208.0,34207.0,4.79605523]
[1625694627661,0.001,34208.0,34207.0,5.01766523]
[1625694627810,0.001,34208.0,34207.0,5.02278918]
[1625694628185,0.001,34208.0,34207.0,5.50394006]
[1625694636291,0.001,34212.0,34207.0,5.50394006]
[1625694636442,0.001,34212.0,34211.0,3.41994254]
[1625694636741,0.001,34212.0,34211.0,2.22296265]
[1625694638252,0.001,34212.0,34211.0,2.70411353]
[1625694638847,0.001,34212.0,34211.0,1.67813077]
[1625694640344,0.001,34212.0,34211.0,5.41491516]
[1625694640345,0.08656485,34212.0,34211.0,5.41491516]
[1625694640495,0.59929302,34212.0,34211.0,5.0728619]
[1625694640719,0.59929302,34212.0,34211.0,5.15833182]
[1625694641021,1.19583769,34212.0,34211.0,4.56005088]
[1625694641469,2.21974169,34212.0,34211.0,4.56005088]
[1625694641770,0.51309767,34212.0,34211.0,4.64552554]
[1625694641919,0.85511111,34212.0,34211.0,4.81645438]
[1625694642219,0.85511111,34212.0,34211.0,4.64552554]
[1625694642373,0.5141115,34212.0,34211.0,4.81641954]
[1625694642972,0.001,34212.0,34211.0,4.56005088]
[1625694643121,0.85597988,34212.0,34211.0,4.64546303]
[1625694643348,0.51395374,34212.0,34211.0,4.56005088]
[1625694643573,1.19785975,34212.0,34211.0,4.56005088]
[1625694643885,0.59976329,34212.0,34211.0,5.15788249]
[1625694644023,0.59976329,34212.0,34211.0,5.03324443]
[1625694644551,0.5139077,34212.0,34211.0,4.77703088]
[1625694644775,0.51407889,34212.0,34211.0,4.86239372]
[1625694645011,0.25770817,34212.0,34211.0,5.3743955]
[1625694645226,0.25770817,34212.0,34211.0,5.37952133]
[1625694645377,0.0866249,34212.0,34211.0,5.29415849]
[1625694646055,0.001,34212.0,34211.0,5.29415849]
[1625694646354,0.001,34212.0,34211.0,5.63508521]
[1625694646953,0.001,34212.0,34211.0,5.97574991]
[1625694647178,0.001,34212.0,34211.0,5.29375069]
[1625694647857,0.001,34212.0,34211.0,5.29123426]
[1625694648605,0.001,34212.0,34211.0,5.37609686]
[1625694649355,0.25662903,34213.0,34211.0,5.37609686]
[1625694649656,0.08559906,34213.0,34212.0,0.08483664]
[1625694649806,0.08559906,34213.0,34212.0,0.08996231]
[1625694650105,0.59849969,34214.0,34212.0,0.08996231]
[1625694650487,0.59849969,34214.0,34213.0,0.00512569]
[1625694650785,0.51268296,34214.0,34213.0,0.00512569]
[1625694650930,1.11113018,34214.0,34213.0,0.00512569]
[1625694651082,0.59844722,34214.0,34212.0,0.09005925]
[1625694651240,0.85454756,34214.0,34212.0,0.00512578]
[1625694651382,0.85454756,34214.0,34213.0,0.0051259]
[1625694651532,0.51269975,34214.0,34213.0,0.0051259]
[1625694651682,1.19617585,34214.0,34213.0,0.0051259]
[1625694651831,1.19617585,34214.0,34212.0,0.00512588]
[1625694652132,0.59839431,34213.0,34212.0,0.00512588]
[1625694652432,0.25657672,34213.0,34212.0,0.00512588]
[1625694652588,0.59839801,34213.0,34212.0,0.00512588]
[1625694655434,0.5128155,34213.0,34212.0,0.00512588]
[1625694656034,2.22111894,34213.0,34212.0,0.00512588]
[1625694656485,3.89817913,34213.0,34212.0,0.00512588]
[1625694656634,3.91116447,34213.0,34212.0,0.00512588]
[1625694656790,5.27778095,34213.0,34210.0,0.00512658]
[1625694656935,8.96578095,34213.0,34210.0,0.00512658]
[1625694657085,3.41679198,34211.0,34210.0,0.00512658]
[1625694657247,2.53432311,34211.0,34210.0,0.00512658]
[1625694657536,1.50931968,34211.0,34210.0,0.00512658]
[1625694660460,0.25655717,34211.0,34210.0,0.00512658]
[1625694660611,0.25655717,34211.0,34210.0,0.48627746]
[1625694660761,0.59831663,34214.0,34210.0,1.6803195]
[1625694660912,0.08556634,34215.0,34210.0,3.00634185]
[1625694661061,0.08556634,34215.0,34214.0,4.3727]
[1625694661211,0.25752686,34216.0,34214.0,4.62847023]
[1625694661361,0.001,34216.0,34215.0,0.3408438]
[1625694661510,0.001,34216.0,34215.0,0.5112657]
[1625694661663,0.001,34216.0,34215.0,0.5163646]
[1625694661966,0.001,34216.0,34215.0,3.41000982]
[1625694662260,0.001,34216.0,34215.0,4.77950727]
[1625694662560,0.001,34216.0,34215.0,5.26065815]
[1625694663616,0.002,34221.0,34215.0,6.78923207]
[1625694663918,0.002,34221.0,34220.0,4.75414604]
[1625694664064,0.002,34221.0,34220.0,5.03663604]
[1625694664213,0.002,34222.0,34220.0,5.03663604]
[1625694664363,0.002,34222.0,34220.0,5.05036684]
[1625694664664,0.002,34222.0,34221.0,3.89120386]
[1625694664813,0.002,34222.0,34221.0,5.24822312]
[1625694666327,0.002,34222.0,34221.0,5.23961848]
[1625694667367,0.002,34225.0,34221.0,5.23961848]
[1625694667668,0.002,34225.0,34224.0,1.186961]
[1625694667968,0.002,34225.0,34224.0,0.50908268]
[1625694668119,0.002,34225.0,34224.0,0.8536035]
[1625694668420,0.002,34225.0,34224.0,0.51414573]
[1625694668569,0.002,34225.0,34224.0,0.83954949]
[1625694668867,0.002,34225.0,34224.0,0.50016104]
[1625694669169,0.002,34225.0,34224.0,0.75458326]
[1625694669318,0.002,34225.0,34224.0,0.75471111]
[1625694670217,0.24057544,34229.0,34224.0,0.75492778]
[1625694670367,0.002,34225.0,34224.0,0.75492778]
[1625694670528,0.002,34225.0,34224.0,1.09455799]
[1625694670670,0.002,34225.0,34224.0,1.08943221]
[1625694670818,0.002,34225.0,34224.0,0.74986778]
[1625694670968,0.002,34225.0,34224.0,0.75499356]
[1625694671568,0.002,34225.0,34224.0,0.8399151]
[1625694671718,0.002,34225.0,34224.0,1.09465278]
[1625694671946,0.002,34225.0,34224.0,0.83995642]
[1625694672249,0.002,34225.0,34224.0,0.83483064]
[1625694672397,0.002,34225.0,34224.0,1.08980944]
[1625694672696,0.002,34225.0,34224.0,0.75032507]
[1625694672848,0.002,34225.0,34224.0,0.75545089]
[1625694672997,0.002,34225.0,34224.0,0.75032507]
[1625694673601,0.002,34225.0,34224.0,1.0901402]
[1625694674282,0.002,34225.0,34224.0,0.75032253]
[1625694674729,0.002,34225.0,34224.0,0.24057544]
[1625694674730,0.72190648,34225.0,34224.0,0.24057544]
[1625694675025,0.46549544,34225.0,34224.0,0.24057544]
[1625694675325,0.46549544,34225.0,34224.0,0.32563291]
[1625694675925,0.55101712,34225.0,34224.0,0.24057544]
[1625694676387,1.06180262,34225.0,34224.0,0.24057544]
[1625694676676,1.31792206,34225.0,34224.0,0.24057544]
[1625694676825,0.8052955,34225.0,34224.0,0.24057544]
[1625694677050,0.97628457,34225.0,34224.0,0.24057544]
[1625694678406,1.66002488,34225.0,34224.0,0.24057544]
[1625694681329,0.97656129,34225.0,34224.0,0.83690071]
[1625694681490,0.72019795,34225.0,34224.0,1.09236298]
[1625694681628,0.49727795,34225.0,34224.0,1.09236298]
[1625694682529,0.49727795,34225.0,34224.0,0.75160568]
[1625694682831,0.32619903,34225.0,34224.0,1.43298549]
[1625694683429,0.24057544,34225.0,34224.0,1.43298549]
[1625694683730,0.24057544,34225.0,34224.0,2.46000918]
[1625694684334,0.24057544,34225.0,34224.0,1.43811222]
[1625694684481,0.49735389,34225.0,34224.0,1.43811222]
[1625694684629,0.49735389,34225.0,34224.0,1.43298549]
[1625694684930,0.75380304,34225.0,34224.0,1.09248326]
[1625694685230,1.09574304,34225.0,34224.0,0.58145302]
[1625694685380,1.09574304,34225.0,34224.0,0.7519025]
[1625694685680,0.75364409,34225.0,34224.0,0.7519025]
[1625694685905,0.75364409,34225.0,34224.0,0.83713178]
[1625694686134,0.75364409,34225.0,34224.0,0.84225886]
[1625694686508,0.75364409,34225.0,34224.0,0.5865801]
[1625694686809,0.75364409,34225.0,34224.0,0.75703671]
[1625694687109,1.09578844,34225.0,34224.0,1.09791826]
[1625694687862,0.75364409,34225.0,34224.0,0.75191295]
[1625694688009,0.75364409,34225.0,34224.0,0.7570401]
[1625694688164,1.43779161,34225.0,34224.0,0.501413]
[1625694688622,2.46388806,34225.0,34224.0,0.24570259]
[1625694689362,3.66113991,34225.0,34224.0,0.24570259]
[1625694692374,2.46388806,34225.0,34224.0,0.24570259]
[1625694693804,2.46388806,34225.0,34224.0,0.33093377]
[1625694695380,2.46388806,34225.0,34224.0,0.24570259]
[1625694698898,1.43779161,34225.0,34224.0,0.50124072]
[1625694699355,1.43779161,34225.0,34224.0,0.75671932]
[1625694699497,0.75364409,34225.0,34224.0,1.09713716]
[1625694699951,0.75364409,34225.0,34224.0,0.75647918]
[1625694700257,0.75400421,34225.0,34224.0,1.43713526]
[1625694700398,0.51342877,34225.0,34224.0,1.19655982]
[1625694701073,0.99457965,34225.0,34224.0,1.19655982]
[1625694701226,1.3366621,34225.0,34224.0,1.19655982]
[1625694701901,0.99461605,34225.0,34224.0,1.19655982]
[1625694702801,1.08031981,34225.0,34224.0,1.19655982]
[1625694703029,0.99461605,34225.0,34224.0,1.19655982]
[1625694703331,0.99461605,34225.0,34224.0,2.21770136]
[1625694705443,1.33695098,34225.0,34224.0,2.21770136]
[1625694706104,0.82337972,34225.0,34224.0,2.21770136]
[1625694707231,0.58280428,34225.0,34224.0,2.50187136]
[1625694707383,0.599288,34225.0,34224.0,2.50187136]
[1625694707683,0.08574343,34225.0,34224.0,3.69285401]
[1625694707830,0.5995114,34226.0,34224.0,3.69285401]
[1625694708130,0.5995114,34226.0,34225.0,2.21178186]
[1625694708279,0.5995114,34226.0,34225.0,2.21690827]
[1625694708431,0.08574378,34226.0,34225.0,2.21690827]
[1625694708733,0.59951694,34227.0,34225.0,3.40752674]
[1625694708882,0.08574192,34227.0,34226.0,3.40116003]
[1625694709035,0.08574192,34227.0,34226.0,3.64173547]
[1625694709180,0.25704802,34227.0,34226.0,2.45645575]
[1625694709630,0.25704802,34227.0,34226.0,3.64703937]
[1625694709781,0.08574192,34227.0,34226.0,3.64703937]
[1625694710083,0.25707836,34228.0,34226.0,3.64703937]
[1625694710233,0.60055759,34229.0,34227.0,3.40000622]
[1625694710540,0.2580724,34229.0,34228.0,3.39964571]
[1625694710681,0.2580724,34229.0,34228.0,3.40477166]
[1625694710981,0.001,34229.0,34228.0,4.76387374]
[1625694711131,0.001,34229.0,34228.0,5.00444918]
[1625694711281,0.001,34229.0,34228.0,3.6453471]
[1625694713008,0.001,34229.0,34228.0,5.00441007]
[1625694713761,0.001,34229.0,34228.0,3.6453471]
[1625694714894,0.08676134,34229.0,34228.0,3.6453471]
[1625694715184,0.6006496,34229.0,34228.0,3.6453471]
[1625694715334,0.5996496,34229.0,34228.0,3.6453471]
[1625694715486,0.51388826,34229.0,34228.0,3.6453471]
[1625694717289,0.51388826,34229.0,34228.0,5.00606986]
[1625694718792,0.34253511,34229.0,34228.0,5.00606986]
[1625694718943,0.08586456,34229.0,34228.0,5.00606986]
[1625694719243,0.6003428,34229.0,34228.0,5.00606986]
[1625694719555,1.20128944,34229.0,34228.0,5.00606986]
[1625694719701,2.23087753,34229.0,34228.0,5.00606986]
[1625694723003,3.43201989,34229.0,34228.0,3.6453471]
[1625694723157,2.23087753,34229.0,34228.0,5.00832209]
[1625694723452,3.43197426,34229.0,34228.0,3.6453471]
[1625694724591,3.70021426,34229.0,34228.0,3.6453471]
[1625694724743,3.70021426,34229.0,34228.0,2.4554711]
[1625694725862,2.49911753,34229.0,34228.0,5.00572115]
[1625694726008,2.23087753,34229.0,34228.0,5.32827115]
[1625694726160,1.20128944,34229.0,34228.0,5.32827115]
[1625694726460,0.51486284,34229.0,34228.0,5.32827115]
[1625694726910,1.20120925,34229.0,34228.0,5.32827115]
[1625694727212,0.51486284,34229.0,34228.0,5.32827115]
[1625694727364,1.20122179,34229.0,34228.0,5.32827115]
[1625694727663,0.51486284,34229.0,34228.0,5.32827115]
[1625694728189,0.8581225,34229.0,34228.0,5.32827115]
[1625694729167,0.51495045,34229.0,34228.0,5.32827115]
[1625694729317,0.34325966,34229.0,34228.0,5.32827115]
[1625694729478,0.34325966,34229.0,34228.0,5.00572115]
[1625694729619,1.20100229,34229.0,34228.0,5.00572115]
[1625694729993,0.51473977,34229.0,34228.0,5.00572115]
[1625694730298,1.20093493,34229.0,34228.0,5.00572115]
[1625694731270,2.47072866,34229.0,34228.0,5.00572115]
[1625694731569,2.47072866,34229.0,34228.0,3.64558779]
[1625694731868,3.6715337,34229.0,34228.0,3.64558779]
[1625694732169,3.9578537,34229.0,34228.0,3.64558779]
[1625694732319,3.9578537,34229.0,34228.0,2.4554711]
[1625694732471,5.3301674,34229.0,34228.0,1.43557739]
[1625694732772,5.3301674,34229.0,34228.0,0.75564825]
[1625694733895,5.3301674,34229.0,34228.0,1.09525777]
[1625694734720,5.3301674,34229.0,34228.0,0.7550764]
[1625694735849,5.3301674,34229.0,34228.0,0.83996982]
[1625694736372,5.3301674,34229.0,34228.0,0.5003603]
[1625694736675,5.3301674,34229.0,34228.0,0.33059481]
[1625694736830,6.87417664,34229.0,34228.0,0.24570139]
[1625694739001,6.87417664,34229.0,34228.0,0.00512595]
[1625694739149,7.37417664,34229.0,34228.0,0.00512595]
[1625694739299,7.61475208,34229.0,34228.0,0.00512595]
[1625694739450,7.61475208,34229.0,34227.0,0.00512999]
[1625694739750,6.34814958,34228.0,34227.0,0.00512999]
[1625694740350,6.84814958,34228.0,34227.0,0.00512999]
[1625694740650,6.84814958,34228.0,34226.0,0.001]
[1625694740876,6.34779377,34227.0,34226.0,0.001]
[1625694741326,6.58836921,34227.0,34226.0,0.001]
[1625694749218,6.58836921,34227.0,34224.0,0.001]
[1625694749361,0.24057544,34226.0,34224.0,0.001]
[1625694749513,4.80077273,34225.0,34224.0,0.001]
[1625694749888,4.80077273,34225.0,34224.0,0.00612804]
[1625694755301,4.80077273,34225.0,34224.0,0.00512804]
[1625694762437,4.80077273,34225.0,34224.0,0.09002845]
[1625694763187,4.80077273,34225.0,34224.0,0.25979126]
[1625694763488,3.42919685,34225.0,34224.0,0.59928171]
[1625694763638,3.42919685,34225.0,34224.0,0.5143813]
[1625694769271,3.42919685,34225.0,34224.0,0.85377615]
[1625694769720,3.42919685,34225.0,34224.0,0.51434049]
[1625694770021,3.42919685,34225.0,34224.0,0.85377053]
[1625694770172,3.42919685,34225.0,34224.0,1.13970053]
[1625694770326,3.42919685,34225.0,34224.0,0.80021008]
[1625694770474,3.42919685,34225.0,34224.0,1.81813211]
[1625694770778,2.22904652,34225.0,34224.0,1.81813211]
[1625694772128,1.20032175,34225.0,34224.0,1.81813211]
[1625694772428,1.20032175,34225.0,34224.0,3.00502489]
[1625694774079,0.5144481,34225.0,34224.0,3.00502489]
[1625694774982,1.20024293,34225.0,34224.0,3.00502489]
[1625694777534,2.22916519,34225.0,34224.0,3.00502489]
[1625694781436,3.42991822,34225.0,34224.0,1.81813211]
[1625694782412,3.42991822,34225.0,34224.0,3.00590024]
[1625694782712,3.42991822,34225.0,34224.0,1.81813211]
[1625694783014,3.42991822,34225.0,34224.0,3.00586824]
[1625694784065,2.22916519,34225.0,34224.0,3.00586824]
[1625694784817,3.43017496,34225.0,34224.0,3.00586824]
[1625694784966,3.66409496,34225.0,34224.0,3.00586824]
[1625694785114,8.13619496,34225.0,34224.0,3.00586824]
[1625694785266,8.13619496,34225.0,34224.0,2.21112373]
[1625694786015,9.50885393,34225.0,34224.0,2.21112373]
[1625694786690,5.03675393,34225.0,34224.0,2.21112373]
[1625694789324,3.66409496,34225.0,34224.0,3.39956133]
[1625694789474,3.43017496,34225.0,34224.0,3.39956133]
[1625694789623,3.43017496,34225.0,34224.0,4.75747568]
[1625694789624,2.22916519,34225.0,34224.0,4.75747568]
[1625694792255,1.20024293,34225.0,34224.0,4.75747568]
[1625694792406,0.5144481,34225.0,34224.0,6.28408578]
[1625694792780,1.2014157,34225.0,34224.0,4.75747568]
[1625694793830,2.23168355,34225.0,34224.0,4.75747568]
[1625694796763,1.2014157,34225.0,34224.0,4.75747568]
[1625694798786,0.5144481,34225.0,34224.0,4.75747568]
[1625694801264,1.20114804,34225.0,34224.0,4.75747568]
[1625694801413,2.23109237,34225.0,34224.0,4.75747568]
[1625694806967,3.43293758,34225.0,34224.0,4.75747568]
[1625694809898,2.23109237,34225.0,34224.0,4.75747568]
[1625694810049,2.23109237,34225.0,34224.0,5.01006568]
[1625694810875,1.20114804,34225.0,34224.0,5.01006568]
[1625694811025,2.2314723,34225.0,34224.0,5.01006568]
[1625694812228,1.20114804,34225.0,34224.0,5.01006568]
[1625694812904,0.5144481,34225.0,34224.0,6.53670841]
[1625694813204,0.5144481,34225.0,34224.0,6.54531199]
[1625694813356,0.92754025,34226.0,34224.0,6.54531199]
[1625694813507,0.08601741,34226.0,34224.0,6.54531199]
[1625694813657,0.25786846,34228.0,34225.0,6.52196604]
[1625694813807,0.25786846,34228.0,34225.0,6.57896604]
[1625694813959,0.08601338,34228.0,34227.0,6.26549092]
[1625694814257,0.25886683,34229.0,34227.0,6.27919017]
[1625694814407,0.25886683,34229.0,34228.0,6.26243918]
[1625694814558,0.08701252,34229.0,34228.0,6.26243918]
[1625694814859,0.08701252,34229.0,34228.0,6.26753546]
[1625694815010,0.001,34229.0,34228.0,6.26753546]
[1625694815758,0.001,34229.0,34228.0,6.5081109]
[1625694826123,0.001,34229.0,34228.0,1.76896774]
[1625694826422,0.001,34229.0,34228.0,6.49651417]
[1625694826723,0.001,34229.0,34228.0,11.27871417]
[1625694827399,0.24057544,34232.0,34228.0,11.27871417]
[1625694827549,0.24057544,34232.0,34228.0,11.33571417]
[1625694827701,0.24057544,34232.0,34231.0,4.96890808]
[1625694827850,0.24057544,34232.0,34231.0,5.25074808]
[1625694828150,0.24057544,34232.0,34231.0,5.2558441]
[1625694834757,0.24057544,34232.0,34231.0,6.76787025]
[1625694834986,0.24057544,34232.0,34231.0,5.2558441]
[1625694835284,0.24057544,34232.0,34231.0,6.76678897]
[1625694837083,0.24057544,34232.0,34231.0,5.2558441]
[1625694838736,0.24057544,34232.0,34231.0,4.9740041]
[1625694839189,0.24057544,34232.0,34231.0,3.62305192]
[1625694840687,0.75469364,34232.0,34231.0,2.44096876]
[1625694840837,1.41137476,34232.0,34231.0,2.44096876]
[1625694841136,1.06885519,34232.0,34231.0,2.44096876]
[1625694841963,5.63325519,34232.0,34231.0,2.44096876]
[1625694842113,6.31840006,34232.0,34231.0,1.42775462]
[1625694842412,6.31840006,34232.0,34231.0,0.75227853]
[1625694842564,7.34622561,34232.0,34231.0,0.74092432]
[1625694842864,7.34622561,34232.0,34231.0,0.82345511]
[1625694843165,7.34622561,34232.0,34231.0,0.49328654]
[1625694843317,7.34622561,34232.0,34231.0,0.2527111]
[1625694843617,8.54549048,34232.0,34231.0,0.00509602]
[1625694845497,9.91630393,34232.0,34231.0,0.00509602]
[1625694845797,9.91630393,34232.0,34230.0,0.00509848]
[1625694846096,4.7981696,34231.0,34229.0,0.001]
[1625694846248,3.42744745,34230.0,34229.0,0.001]
[1625694846547,4.79836417,34230.0,34229.0,0.00609214]
[1625694847828,5.03893961,34230.0,34229.0,0.00609214]
[1625694850154,5.03893961,34230.0,34229.0,0.001]
[1625694853684,6.58125473,34230.0,34229.0,0.001]
[1625694855108,5.03893961,34230.0,34229.0,0.001]
[1625694856532,6.58100975,34230.0,34229.0,0.001]
[1625694856684,7.08100975,34230.0,34229.0,0.001]
[1625694857358,7.08100975,34230.0,34224.0,0.58876218]
[1625694857359,7.08100975,34230.0,34227.0,0.001]
[1625694857508,5.53893961,34230.0,34227.0,0.001]
[1625694857659,4.79758931,34228.0,34227.0,0.001]
[1625694857960,5.03816475,34228.0,34227.0,0.001]
[1625694858261,3.66749837,34228.0,34227.0,0.001]
[1625694858413,3.66749837,34228.0,34227.0,0.25183587]
[1625694858711,3.66749837,34228.0,34227.0,4.14553587]
[1625694859161,3.66749837,34228.0,34227.0,4.47996548]
[1625694859612,2.46814387,34228.0,34227.0,4.47996548]
[1625694859911,2.46814387,34228.0,34227.0,4.39635352]
[1625694860435,2.46814387,34228.0,34227.0,4.48505404]
[1625694860586,2.46814387,34228.0,34227.0,4.40144548]
[1625694861188,1.44010125,34228.0,34227.0,5.06968453]
[1625694861941,1.44010125,34228.0,34227.0,6.0731144]
[1625694863145,0.7546824,34228.0,34227.0,6.4177044]
[1625694863819,1.4399274,34228.0,34227.0,6.4177044]